bitfinex-derivatives/quotes_ETHF0:USTF0_20260125
["timestamp","ask_amount","ask_price","bid_price","bid_amount"]
[1769369075075,0.17652,2836.0,2834.0,2.45213901]
[1769369075469,0.17652,2836.0,2834.2,2.53576801]
[1769369075664,0.17652,2836.0,2834.2,2.53907801]
[1769369075864,0.17653,2835.9,2834.2,2.53907801]
[1769369076076,0.17653,2835.8,2834.2,2.53907801]
[1769369076270,2.52737572,2836.2,2834.2,2.53907801]
[1769369076577,0.17655,2835.5,2834.2,2.53907801]
[1769369076776,35.69713984,2836.1,2834.2,2.53907801]
[1769369076777,31.33013976,2835.9,2834.2,6.36307801]
[1769369076977,4.36606702,2835.8,2834.2,6.36307801]
[1769369077273,0.17656,2835.4,2834.2,6.36307801]
[1769369077865,0.17656,2835.4,2834.3,2.53576801]
[1769369078178,0.17653,2835.9,2834.3,2.53576801]
[1769369079177,4.3705749,2835.8,2834.3,2.53576801]
[1769369079378,0.17653,2835.9,2834.3,2.53576801]
[1769369079577,4.36966498,2835.8,2834.3,2.53576801]
[1769369079779,0.17653,2835.9,2834.3,2.53576801]
[1769369079979,4.36975974,2835.8,2834.3,2.53576801]
[1769369080180,0.17653,2835.9,2834.3,2.53576801]
[1769369080382,4.37163883,2835.8,2834.3,2.53576801]
[1769369080582,0.17653,2835.9,2834.3,2.53576801]
[1769369081278,4.37153554,2835.8,2834.5,2.53576801]
[1769369081477,0.17653,2835.9,2834.6,6.35976801]
[1769369081668,4.37154147,2835.8,2834.6,6.35976801]
[1769369081874,0.17653,2835.9,2834.7,2.53576801]
[1769369082070,4.37155255,2835.8,2834.7,2.53576801]
[1769369082275,4.37155255,2835.7,2834.7,2.53576801]
[1769369082471,0.17653,2835.9,2834.7,2.53576801]
[1769369082675,4.37543152,2835.8,2834.7,2.53576801]
[1769369082877,4.37543152,2835.7,2834.7,2.53576801]
[1769369083186,0.17654,2835.8,2834.6,3.824]
[1769369083382,4.37869139,2835.7,2834.6,3.824]
[1769369083578,4.37869139,2835.6,2834.6,3.824]
[1769369083882,0.17654,2835.8,2834.6,3.824]
[1769369084083,4.37748425,2835.7,2834.6,6.35976801]
[1769369084279,4.37748425,2835.6,2834.6,6.35976801]
[1769369084479,31.33013976,2836.0,2834.2,0.00331]
[1769369084480,31.33013976,2836.0,2834.8,2.53576801]
[1769369084687,0.17649,2836.4,2834.8,2.53576801]
[1769369084884,4.38057953,2836.3,2834.8,2.53576801]
[1769369085089,4.38057953,2836.2,2834.8,2.53576801]
[1769369085285,4.38057953,2836.1,2834.8,2.53576801]
[1769369085584,31.50662976,2836.4,2834.8,2.53576801]
[1769369085895,4.38286543,2836.3,2834.8,2.53576801]
[1769369086185,4.38286543,2836.2,2834.8,2.53576801]
[1769369086390,0.17649,2836.4,2834.8,2.53576801]
[1769369086579,4.38481657,2836.3,2834.8,2.53576801]
[1769369086781,4.38481657,2836.2,2834.8,2.53576801]
[1769369087082,0.17649,2836.4,2834.8,2.53576801]
[1769369087282,4.38517642,2836.3,2834.8,2.53576801]
[1769369087490,4.38517642,2836.2,2834.8,2.53576801]
[1769369087685,0.17649,2836.4,2834.8,2.53576801]
[1769369087885,4.38505487,2836.3,2834.8,2.53576801]
[1769369088090,4.38505487,2836.2,2834.8,2.53576801]
[1769369088283,0.00354451,2836.6,2834.8,2.53576801]
[1769369088484,4.38700548,2836.5,2834.8,2.53576801]
[1769369088680,4.38700548,2836.4,2834.8,2.53576801]
[1769369088994,0.00354451,2836.6,2834.8,2.53576801]
[1769369089191,4.38918842,2836.5,2834.8,2.71235801]
[1769369089493,0.17646,2837.1,2834.7,5.6]
[1769369089494,13.26131884,2837.6,2835.7,2.45386541]
[1769369089685,4.15342539,2837.7,2835.1,0.17658]
[1769369089686,2.86678369,2837.7,2835.1,0.17658]
[1769369089890,2.86678369,2837.5,2835.8,0.17653]
[1769369090188,2.86421913,2838.5,2836.3,0.05906633]
[1769369090389,2.86723146,2838.5,2836.4,3.53]
[1769369091193,3.04360146,2838.5,2836.4,3.53]
[1769369091496,2.86412421,2838.0,2836.4,3.53]
[1769369091694,2.86412421,2837.8,2836.4,3.53]
[1769369091999,3.04054421,2837.6,2836.4,3.53]
[1769369092498,2.8458118,2837.3,2836.4,3.53]
[1769369093101,2.8458118,2837.3,2836.3,0.00329735]
[1769369094104,2.84738519,2836.9,2835.1,3.529]
[1769369094801,2.84738519,2836.7,2835.1,3.529]
[1769369095002,2.84766315,2836.4,2835.1,3.53254958]
[1769369095203,2.85122981,2836.4,2835.1,3.53254958]
[1769369098006,2.85681591,2836.2,2835.1,3.53254958]
[1769369102508,2.85011004,2835.8,2833.8,3.529]
[1769369102706,2.85011004,2835.8,2833.9,2.07]
[1769369103212,0.00356666,2836.4,2832.9,9.14140509]
[1769369103213,2.84884064,2834.9,2833.0,10.34344393]
[1769369103409,2.84884064,2834.9,2832.3,1.08647715]
[1769369103410,2.84884064,2834.7,2832.5,2.07]
[1769369103612,2.84884064,2834.7,2832.5,2.07382069]
[1769369104107,2.84884064,2834.7,2832.6,0.17673]
[1769369106103,2.84884064,2834.7,2832.5,2.07382069]
[1769369109018,2.82924011,2834.2,2832.5,2.07382069]
[1769369109218,2.83337186,2834.2,2832.5,2.07382069]
[1769369109422,3.00591011,2833.7,2832.5,0.00382069]
[1769369109611,0.00413175,2834.2,2832.5,0.00382069]
[1769369109612,2.82924011,2833.4,2832.5,0.00382069]
[1769369110512,3.00593011,2833.4,2832.5,0.00382069]
[1769369111811,2.82924011,2833.4,2832.5,0.00382069]
[1769369113220,2.82924011,2833.4,2832.2,3.529]
[1769369113418,1.22001621,2833.3,2831.3,2.07]
[1769369113618,2.5476637,2832.6,2830.3,2.22509902]
[1769369114217,2.5476637,2832.6,2830.3,2.22837453]
[1769369114419,2.5476637,2832.6,2830.7,2.16603413]
[1769369114719,2.5476637,2833.3,2830.7,2.16603413]
[1769369114924,2.5476637,2833.3,2831.2,1.22001621]
[1769369115320,2.7243537,2833.3,2830.7,3.38605034]
[1769369115517,2.28575119,2833.2,2830.7,3.38605034]
[1769369115715,2.28575119,2833.0,2830.4,2.06474104]
[1769369118024,0.17673,2832.6,2830.3,1.88678968]
[1769369118218,2.46244119,2833.4,2831.7,1.22001621]
[1769369118416,2.28575119,2833.2,2831.2,1.22001621]
[1769369119133,2.28575119,2833.0,2830.7,1.22001621]
[1769369119332,2.28575119,2833.0,2830.5,1.88351417]
[1769369119722,2.28575119,2833.0,2830.7,1.22001621]
[1769369120023,2.28575119,2832.5,2830.3,0.00327551]
[1769369120224,2.28575119,2832.5,2830.7,1.22001621]
[1769369120723,2.28575119,2833.2,2830.8,1.84435232]
[1769369120924,2.28575119,2833.2,2831.2,1.22001621]
[1769369121323,2.28575119,2833.9,2831.7,1.22001621]
[1769369121527,2.28575119,2833.9,2831.7,3.29201621]
[1769369121823,2.28575119,2833.9,2831.7,2.072]
[1769369122020,2.28575119,2833.7,2831.7,2.072]
[1769369122216,2.46241119,2833.7,2831.7,2.072]
[1769369122722,2.28575119,2833.5,2831.7,2.072]
[1769369122926,2.46243119,2833.5,2831.7,2.072]
[1769369125625,2.46243119,2833.5,2831.7,3.29201621]
[1769369126637,2.28988294,2834.2,2832.2,1.22001621]
[1769369126934,0.00413175,2834.2,2832.7,1.22001621]
[1769369127151,0.00413175,2834.2,2832.7,1.22281449]
[1769369127737,2.28575119,2834.1,2832.7,0.00279828]
[1769369131039,2.28575119,2833.9,2831.8,1.22001621]
[1769369131341,2.28575119,2833.7,2831.5,2.072]
[1769369132041,2.28575119,2833.7,2831.5,2.07576283]
[1769369132540,2.28575119,2833.7,2832.3,1.22001621]
[1769369132744,2.28988294,2834.2,2832.3,1.22001621]
[1769369133138,2.28988294,2834.2,2831.5,2.07576283]
[1769369133139,1.86804221,2832.9,2831.5,0.00376283]
[1769369133347,5.92980222,2832.8,2831.5,0.00376283]
[1769369133542,32.93693195,2833.3,2831.5,0.00376283]
[1769369133844,4.33010539,2833.5,2831.5,0.00376283]
[1769369133845,1.86804221,2833.1,2831.5,0.00376283]
[1769369135344,0.17669,2833.4,2831.5,1.7568339]
[1769369135539,2.04473221,2833.4,2831.5,1.7568339]
[1769369136848,4.11683589,2833.3,2831.5,1.7568339]
[1769369137044,2.04473221,2833.4,2831.5,1.7568339]
[1769369137235,4.11873488,2833.3,2831.5,1.7568339]
[1769369137435,1.86804221,2833.1,2831.5,0.00376283]
[1769369137641,1.86804221,2832.9,2831.5,0.00376283]
[1769369138751,0.1767,2833.1,2831.5,0.00376283]
[1769369139045,4.12131263,2833.0,2831.5,0.00376283]
[1769369139249,0.1767,2833.1,2831.5,0.00376283]
[1769369139548,4.12206778,2833.0,2831.5,0.00376283]
[1769369139745,1.86804221,2833.1,2831.5,0.00376283]
[1769369140048,2.04479221,2832.3,2830.3,2.072]
[1769369140346,1.86804221,2832.1,2830.3,2.072]
[1769369141051,1.8719205,2832.1,2830.3,2.07488349]
[1769369141253,1.86804221,2831.9,2830.3,2.07488349]
[1769369141744,1.86804221,2831.9,2830.3,0.00288349]
[1769369141950,4.11676097,2831.8,2830.3,0.00288349]
[1769369142145,1.86804221,2831.9,2830.3,0.00288349]
[1769369142348,5.9828645,2831.8,2830.3,0.00288349]
[1769369142548,1.86804221,2831.8,2830.3,0.00288349]
[1769369146356,0.18063829,2832.1,2830.3,0.00288349]
[1769369146552,4.10752063,2832.0,2830.3,0.00288349]
[1769369146757,2.0486805,2832.1,2830.3,0.00288349]
[1769369146944,4.10746031,2832.0,2830.3,0.00288349]
[1769369147144,2.0486805,2832.1,2830.3,0.00288349]
[1769369147752,1.8719205,2832.1,2830.5,1.22001621]
[1769369148055,0.00387829,2832.1,2830.5,2.97308728]
[1769369148456,1.8719205,2832.1,2830.5,2.97308728]
[1769369148653,1.8719205,2832.1,2830.5,1.22001621]
[1769369148951,1.86804221,2831.9,2830.3,0.00288349]
[1769369149157,1.86804221,2831.9,2830.3,1.75595456]
[1769369149357,0.00387829,2832.1,2831.0,1.22001621]
[1769369149662,0.00387829,2832.1,2831.0,5.04608728]
[1769369152163,1.86804221,2833.4,2831.5,1.22001621]
[1769369152356,1.86804221,2833.4,2831.5,2.97308728]
[1769369152555,1.86804221,2833.2,2831.0,2.073]
[1769369152859,1.86804221,2833.0,2831.0,2.073]
[1769369153062,1.87225104,2833.0,2831.0,2.073]
[1769369155058,2.04896104,2833.0,2831.0,2.073]
[1769369156864,1.86804221,2832.7,2831.0,2.073]
[1769369157065,2.04477221,2832.7,2831.0,2.073]
[1769369157263,1.86804221,2832.5,2831.0,2.073]
[1769369157565,0.17678,2831.9,2830.3,0.00288349]
[1769369157869,1.68142128,2831.9,2830.3,0.00288349]
[1769369158564,0.17678,2831.9,2830.3,1.75595456]
[1769369159165,0.17678,2831.8,2830.3,0.00288349]
[1769369159371,1.60714544,2831.7,2830.3,0.00288349]
[1769369159669,0.1768,2831.5,2830.3,0.00288349]
[1769369160066,0.17681,2831.4,2829.7,1.75307107]
[1769369160665,0.17679,2831.7,2829.7,1.75307107]
[1769369160867,0.17687,2830.4,2828.5,1.75307107]
[1769369161064,0.18005734,2830.4,2828.7,1.75307107]
[1769369161570,0.18005734,2830.4,2828.8,5.28707107]
[1769369161867,4.10585776,2830.3,2828.2,1.75307107]
[1769369162177,0.17692,2829.6,2828.2,0.00455174]
[1769369162369,0.17692,2829.6,2828.3,3.534]
[1769369162565,4.27234067,2829.5,2828.2,0.00455174]
[1769369162768,0.17693,2829.5,2828.2,3.53855174]
[1769369163371,0.17688,2830.3,2828.3,1.44572179]
[1769369163875,0.00318734,2830.4,2828.5,1.44572179]
[1769369164074,0.00318734,2830.4,2828.7,1.46301563]
[1769369164373,0.00318734,2830.4,2828.5,1.46301563]
[1769369164872,0.00318734,2830.4,2828.7,1.46301563]
[1769369165276,0.00318734,2830.4,2829.2,1.46345658]
[1769369166163,0.00318734,2830.4,2829.3,5.01239197]
[1769369166367,0.00318734,2830.4,2828.9,5.01239197]
[1769369166568,0.00318734,2830.4,2829.0,1.47839197]
[1769369167074,0.00318734,2830.4,2829.2,1.47851999]
[1769369167579,0.00318734,2830.4,2829.4,1.47851999]
[1769369167780,0.17679,2831.6,2829.6,1.47851999]
[1769369168284,0.17679,2831.6,2829.8,1.47203598]
[1769369168783,0.17686,2830.5,2828.8,1.47203598]
[1769369169075,0.17681,2831.3,2829.0,1.47497609]
[1769369169276,0.17686,2830.6,2829.0,1.47497609]
[1769369169673,0.17686,2830.6,2829.1,3.52834193]
[1769369169878,0.17686,2830.6,2829.1,5.00331802]
[1769369170480,0.17686,2830.6,2829.2,1.43150714]
[1769369171079,0.17686,2830.6,2829.4,1.43152575]
[1769369171585,0.17686,2830.6,2829.5,3.52834193]
[1769369171782,0.17686,2830.6,2829.5,4.95986768]
[1769369171986,0.17686,2830.6,2829.6,1.43592105]
[1769369172183,0.17681,2831.4,2829.6,1.43592105]
[1769369172377,0.00388908,2831.6,2829.8,1.43592105]
[1769369172973,0.00388908,2831.6,2830.0,1.43594802]
[1769369173178,0.00388908,2831.6,2830.2,1.43594802]
[1769369173375,0.00388908,2831.6,2830.2,1.43964803]
[1769369173578,0.00388908,2831.6,2830.3,3.52834193]
[1769369173785,0.17681,2831.4,2830.3,3.52834193]
[1769369174075,0.00388908,2831.6,2830.4,1.37386199]
[1769369174684,0.24186497,2831.6,2830.5,3.29038906]
[1769369174979,0.17681,2831.4,2830.3,3.29038906]
[1769369175575,0.17681,2831.4,2830.4,1.4926351]
[1769369175782,0.00388908,2831.6,2830.4,1.4926351]
[1769369175988,0.00388908,2831.6,2830.5,3.29038906]
[1769369176990,0.18067908,2831.6,2830.5,3.29038906]
[1769369177296,0.00388908,2831.6,2830.2,0.00370001]
[1769369177588,0.0744009,2831.0,2829.0,3.536]
[1769369177794,0.17692,2829.7,2827.6,1.46720621]
[1769369178299,31.15299657,2830.7,2827.8,1.46796065]
[1769369178484,0.17688,2830.3,2827.8,1.46796065]
[1769369178795,0.17688,2830.3,2828.0,1.46796065]
[1769369179093,3.536,2830.9,2828.3,1.46783472]
[1769369179397,0.17683,2831.0,2828.5,1.64482472]
[1769369179708,0.18067908,2831.6,2828.9,1.64479472]
[1769369179896,0.18067908,2831.6,2829.1,1.46783472]
[1769369180495,0.00388908,2831.6,2829.3,1.46740342]
[1769369180798,0.09314297,2831.4,2829.3,1.46740342]
[1769369180990,31.24613954,2831.4,2829.3,1.46740342]
[1769369181190,4.08180334,2831.3,2829.3,1.46740342]
[1769369181395,0.17685,2830.8,2829.4,4.36458093]
[1769369181599,0.17685,2830.8,2829.4,1.46719187]
[1769369181991,0.11836734,2831.3,2829.5,2.46465906]
[1769369182292,1.22231791,2829.6,2825.2,11.977056]
[1769369182498,0.17701,2828.1,2825.3,2.46465906]
[1769369182798,0.17706,2827.4,2825.6,0.06156622]
[1769369182993,2.074,2827.6,2825.7,2.46465906]
[1769369183291,1.22231791,2827.0,2824.5,1.52234688]
[1769369183500,0.00890589,2826.4,2824.3,3.536]
[1769369183804,0.17713,2826.2,2824.4,0.06159766]
[1769369184095,4.06217426,2826.1,2824.2,1.41630947]
[1769369184293,2.074,2826.4,2824.2,1.41630947]
[1769369184294,0.17719,2825.3,2824.2,0.0026706]
[1769369184594,0.17722,2824.9,2822.6,2.65]
[1769369184991,0.17728,2823.8,2821.9,1.53940329]
[1769369185195,0.06165348,2822.6,2821.1,0.00994404]
[1769369185397,2.13996032,2822.6,2821.1,0.01319233]
[1769369186097,0.06596032,2822.6,2821.1,0.01319233]
[1769369186697,0.06596032,2822.6,2821.0,0.00889214]
[1769369186698,0.17738,2822.2,2821.0,0.00889214]
[1769369187000,0.17738,2822.2,2819.1,3.538]
[1769369187001,5.614,2822.1,2819.2,1.64799549]
[1769369187395,0.06596032,2822.6,2819.2,1.64799549]
[1769369187396,0.17742,2821.7,2819.2,1.64799549]
[1769369187600,0.06596032,2822.6,2819.2,1.64799549]
[1769369187903,0.06596032,2822.6,2819.4,1.64799549]
[1769369188303,0.06596032,2822.6,2820.2,0.1775]
[1769369188499,0.06596032,2822.6,2820.3,1.71839673]
[1769369188802,0.06596032,2822.6,2820.5,1.71839673]
[1769369188998,3.541,2824.8,2820.6,2.076]
[1769369189192,0.1772,2825.2,2821.2,1.68967335]
[1769369189392,2.076,2825.1,2821.3,2.076]
[1769369189602,2.076,2826.0,2822.2,0.17738]
[1769369189797,0.4294953,2824.9,2822.3,1.86705335]
[1769369189993,0.43252523,2824.9,2822.5,1.58300215]
[1769369190395,2.077,2826.9,2822.9,1.58300215]
[1769369190699,3.541,2826.8,2823.5,1.48785162]
[1769369191200,2.25405,2827.5,2823.7,1.4881426]
[1769369191395,0.1771,2826.8,2823.7,1.4881426]
[1769369191803,0.40378914,2827.4,2823.7,1.6654326]
[1769369192101,2.08056725,2827.5,2824.3,1.39675897]
[1769369192293,0.00356725,2827.5,2824.9,1.39675897]
[1769369192599,0.9298872,2830.3,2826.0,1.39675897]
[1769369192801,0.1769,2830.0,2826.6,1.39675897]
[1769369193303,0.76252004,2829.3,2826.6,1.39675897]
[1769369193514,0.76252004,2829.3,2826.1,1.61717965]
[1769369193798,0.93949004,2828.8,2826.1,1.62050509]
[1769369194004,0.95687963,2828.6,2826.1,1.62050509]
[1769369194205,1.13387963,2828.4,2826.1,0.00332544]
[1769369194715,0.95687963,2827.9,2826.1,0.00332544]
[1769369194902,1.03754647,2827.3,2824.6,1.61717965]
[1769369195102,1.03754647,2827.2,2824.3,3.541]
[1769369195496,1.03754647,2826.3,2824.0,1.61717965]
[1769369195698,1.03754647,2826.1,2822.8,1.61717965]
[1769369195898,1.04159155,2826.1,2823.2,1.61717965]
[1769369196299,1.21873155,2826.1,2823.2,1.61717965]
[1769369196806,1.21616189,2825.9,2823.2,1.61717965]
[1769369197007,0.00404508,2826.1,2823.2,1.61717965]
[1769369197211,0.00404508,2826.1,2823.4,1.61717965]
[1769369197401,1.3116251,2826.1,2823.4,1.61717965]
[1769369197600,0.00404508,2826.1,2823.8,1.61717965]
[1769369197810,0.00404508,2826.1,2824.2,1.61717965]
[1769369198803,1.30074693,2826.1,2823.5,1.61717965]
[1769369199209,1.47788693,2826.1,2823.5,1.61717965]
[1769369199715,1.561048,2826.0,2823.5,1.61717965]
[1769369200210,1.57780924,2825.7,2822.9,1.61717965]
[1769369200417,0.17717,2825.6,2822.9,1.61717965]
[1769369200704,1.57780924,2825.7,2823.1,0.17733]
[1769369201009,1.69291383,2825.6,2822.6,3.542]
[1769369201311,1.69291383,2825.6,2822.6,3.71936]
[1769369201504,0.00404508,2826.1,2823.0,0.17733]
[1769369201705,1.69695891,2826.1,2823.0,0.18048331]
[1769369201909,1.69291383,2825.9,2823.0,0.18048331]
[1769369202416,1.69291383,2825.5,2823.0,0.00315331]
[1769369202705,1.69695891,2826.1,2823.0,1.62033296]
[1769369202913,1.69695891,2826.1,2823.4,1.79448965]
[1769369203113,0.00404508,2826.1,2823.7,1.61717965]
[1769369203299,1.69695891,2826.1,2823.7,1.61717965]
[1769369203502,0.17716,2825.8,2823.7,1.61717965]
[1769369204214,0.17719,2825.3,2823.0,1.62033296]
[1769369204406,1.69291383,2825.6,2823.0,1.62033296]
[1769369204605,1.69291383,2825.6,2823.2,1.61717965]
[1769369204909,0.18118508,2826.1,2823.4,1.61717965]
[1769369205309,0.18118508,2826.1,2823.7,1.61717965]
[1769369205612,1.87009383,2825.5,2823.0,1.79766296]
[1769369206114,1.87009383,2825.4,2823.0,1.62033296]
[1769369207414,1.87010383,2825.3,2823.0,1.62033296]
[1769369207807,0.17719,2825.3,2823.0,1.62033296]
[1769369208007,0.18118508,2826.1,2823.6,1.61717965]
[1769369208413,1.69291383,2825.9,2823.6,1.61717965]
[1769369208613,1.69291383,2825.4,2823.0,1.62033296]
[1769369208811,1.87013383,2824.9,2823.0,0.00315331]
[1769369209013,0.17725,2824.3,2823.0,0.00315331]
[1769369209212,1.87016383,2824.3,2823.0,0.00315331]
[1769369209407,0.17727,2824.1,2823.0,0.00315331]
[1769369209611,0.17729,2823.8,2821.8,1.61717965]
[1769369209806,0.1773,2823.6,2821.2,5.16017965]
[1769369210010,0.1773,2823.5,2821.2,1.61717965]
[1769369210213,5.1240231,2824.9,2821.2,1.61717965]
[1769369210214,1.69291383,2824.3,2821.9,1.61717965]
[1769369210414,5.23591383,2825.6,2823.3,1.61717965]
[1769369210714,3.543,2825.6,2823.5,1.61717965]
[1769369210911,3.54649738,2825.6,2823.5,1.61717965]
[1769369211314,0.17723,2824.8,2822.2,1.61717965]
[1769369211520,0.17723,2824.8,2821.2,3.543]
[1769369211521,1.69291383,2825.0,2822.6,1.61717965]
[1769369211716,0.17724,2824.6,2822.6,1.61717965]
[1769369211914,1.69291383,2824.9,2822.6,1.61717965]
[1769369212415,3.54649738,2825.6,2821.2,3.543]
[1769369212416,0.17727,2824.0,2821.9,1.61717965]
[1769369212612,30.42189936,2824.7,2822.0,1.62084533]
[1769369212805,7.57545627,2825.6,2822.9,1.61717965]
[1769369212806,1.69291383,2825.5,2822.9,1.61717965]
[1769369213012,1.69291383,2825.5,2823.1,1.79449965]
[1769369213211,1.69291383,2825.5,2823.3,1.79448965]
[1769369213407,1.69291383,2825.5,2822.0,0.00366568]
[1769369213408,0.00349738,2825.6,2824.0,1.61717965]
[1769369213818,0.17708,2827.1,2824.6,1.61717965]
[1769369214206,1.69291383,2827.4,2824.8,1.61717965]
[1769369214623,1.69291383,2827.4,2825.0,1.61717965]
[1769369215118,1.69618605,2827.4,2825.0,1.79438965]
[1769369215714,0.00327222,2827.4,2825.4,1.61717965]
[1769369215916,0.33600933,2828.5,2826.2,1.61717965]
[1769369216112,0.33600933,2828.5,2826.2,1.79430965]
[1769369216309,0.33600933,2828.5,2826.2,1.61717965]
[1769369216515,1.86992383,2828.2,2825.4,1.61717965]
[1769369216717,1.69291383,2828.2,2825.9,1.61717965]
[1769369216908,1.86988383,2828.9,2825.9,1.61717965]
[1769369217113,0.00377834,2828.2,2826.3,1.61717965]
[1769369217512,0.00377834,2828.2,2826.3,1.79430965]
[1769369218419,0.00377834,2828.2,2826.3,1.61717965]
[1769369219908,0.00377834,2828.2,2825.9,0.18047714]
[1769369219909,1.69291383,2828.1,2825.9,0.00332714]
[1769369220112,0.17704,2827.7,2825.9,0.00332714]
[1769369220317,1.86995383,2827.7,2825.9,0.00332714]
[1769369220517,0.00377834,2828.2,2825.9,1.62050679]
[1769369220709,0.00377834,2828.2,2826.2,1.61717965]
[1769369220917,0.00377834,2828.2,2826.5,0.17711]
[1769369221119,0.00377834,2828.2,2826.6,1.61717965]
[1769369221322,1.69291383,2829.4,2826.6,1.61717965]
[1769369221522,3.542,2829.6,2827.2,1.79424965]
[1769369221825,1.69291383,2830.0,2827.6,1.79421965]
[1769369222024,4.20138793,2829.9,2827.6,1.61717965]
[1769369222220,1.69291383,2830.0,2827.6,1.61717965]
[1769369222530,1.86988383,2828.8,2826.4,1.61717965]
[1769369222927,0.17698,2828.7,2826.4,1.61717965]
[1769369223222,3.28657209,2828.1,2826.3,3.542]
[1769369223524,0.17704,2827.7,2825.9,0.00332714]
[1769369223917,3.29050597,2827.7,2825.9,0.00332714]
[1769369224427,3.11346597,2827.7,2825.9,0.00332714]
[1769369224921,4.37302022,2827.6,2825.9,0.00332714]
[1769369225127,0.17705,2827.6,2825.9,0.00332714]
[1769369226017,3.10955209,2827.1,2824.2,3.32684867]
[1769369226216,3.10955209,2826.6,2824.2,3.32684867]
[1769369226427,0.17711,2826.7,2824.2,3.32684867]
[1769369226622,3.10955209,2826.7,2824.2,3.32684867]
[1769369226819,3.10955209,2826.5,2823.2,0.17732]
[1769369227019,30.42189936,2827.0,2823.2,0.17732]
[1769369227020,3.10955209,2826.0,2823.3,3.32684867]
[1769369228026,4.46035175,2826.6,2823.2,0.00255112]
[1769369228027,3.28675209,2825.2,2823.2,0.00255112]
[1769369228327,0.1772,2825.2,2823.2,3.32939979]
[1769369228621,0.18139033,2825.2,2823.2,3.32939979]
[1769369229420,0.1772,2825.1,2823.2,3.32939979]
[1769369229620,0.00419033,2825.2,2823.2,3.32939979]
[1769369230425,3.11374242,2825.2,2823.2,3.32939979]
[1769369230627,3.28677209,2824.8,2823.2,0.00255112]
[1769369230826,0.00419033,2825.2,2823.2,0.00255112]
[1769369231133,0.00419033,2825.2,2823.2,3.32939979]
[1769369231629,0.00419033,2825.2,2823.4,3.32684867]
[1769369231927,0.00419033,2825.2,2823.4,3.50414867]
[1769369232840,3.29094242,2825.2,2823.2,0.00255112]
[1769369233033,0.1772,2825.1,2823.2,0.00255112]
[1769369233236,3.10955209,2824.8,2823.2,0.00255112]
[1769369233431,0.17723,2824.7,2823.2,0.00255112]
[1769369234033,0.00419033,2825.2,2823.8,3.32684867]
[1769369235235,0.00419033,2825.2,2823.2,3.32939979]
[1769369235631,0.00419033,2825.2,2823.8,3.823778]
[1769369235833,0.00419033,2825.2,2824.0,3.823778]
[1769369236034,0.00419033,2825.2,2824.0,4.001048]
[1769369236233,3.89294605,2826.3,2824.0,4.001048]
[1769369236939,3.71581605,2826.3,2824.0,3.823778]
[1769369237130,0.17716,2825.8,2824.0,3.823778]
[1769369237330,3.72029166,2826.3,2824.0,3.823778]
[1769369237531,0.17716,2825.7,2824.0,3.823778]
[1769369238232,0.17717,2825.6,2823.5,0.1773]
[1769369238433,0.17719,2825.3,2823.4,3.823778]
[1769369238639,0.17715,2825.9,2823.8,3.823778]
[1769369238832,0.00447561,2826.3,2824.0,3.823778]
[1769369239034,0.00447561,2826.3,2824.6,0.17723]
[1769369239244,0.00447561,2826.3,2825.0,3.823778]
[1769369239429,3.542,2827.3,2825.0,4.000978]
[1769369239734,0.17707,2827.2,2825.2,3.823778]
[1769369239934,0.1771,2826.8,2823.8,3.823778]
[1769369240132,0.1771,2826.8,2824.6,3.823778]
[1769369240332,3.71581605,2827.2,2824.9,0.17721]
[1769369240644,3.542,2827.3,2825.0,3.823778]
[1769369240939,0.00317034,2827.2,2825.3,3.823778]
[1769369241341,3.71898639,2827.2,2824.9,0.00288831]
[1769369241538,3.71581605,2827.0,2824.9,0.00288831]
[1769369241844,0.17712,2826.4,2824.9,0.00288831]
[1769369242446,0.17714,2826.1,2824.9,0.00288831]
[1769369242740,3.71581605,2826.5,2824.9,0.00288831]
[1769369243047,0.17711,2826.6,2824.9,0.00288831]
[1769369243344,3.71581605,2827.1,2824.9,3.82666631]
[1769369243545,3.89289605,2827.1,2824.9,4.00387631]
[1769369243940,0.17708,2827.1,2824.9,4.00387631]
[1769369244743,0.17709,2826.9,2824.9,3.82666631]
[1769369245238,30.42189936,2828.3,2826.0,3.823778]
[1769369245439,0.177,2828.4,2826.0,3.823778]
[1769369245742,4.14874149,2828.3,2826.0,3.823778]
[1769369245941,0.17704,2827.7,2825.4,4.000958]
[1769369246244,0.17699,2828.4,2825.9,3.823778]
[1769369246448,0.00425045,2827.7,2825.9,3.823778]
[1769369246744,0.00425045,2827.7,2825.9,4.000928]
[1769369247043,0.00425045,2827.7,2826.2,3.823778]
[1769369247939,0.17706,2827.4,2825.4,3.823778]
[1769369248944,0.00425045,2827.7,2825.4,3.823778]
[1769369249144,0.00425045,2827.7,2825.6,3.823778]
[1769369249542,0.00425045,2827.7,2825.8,3.823778]
[1769369251150,3.542,2828.9,2826.6,3.823778]
[1769369251445,0.17695,2829.2,2826.6,4.000878]
[1769369251847,0.17695,2829.2,2826.4,3.541]
[1769369251848,0.17693,2829.5,2827.2,3.823778]
[1769369252150,0.18060114,2829.5,2827.2,3.82678255]
[1769369252341,0.00367114,2829.5,2827.4,3.823778]
[1769369252541,0.00367114,2829.5,2827.6,3.823778]
[1769369252741,0.00367114,2829.5,2827.8,3.823778]
[1769369253144,0.00367114,2829.5,2827.8,4.000808]
[1769369253648,0.00367114,2829.5,2827.8,3.823778]
[1769369254551,0.00367114,2829.5,2827.2,0.00300455]
[1769369254855,0.17693,2829.4,2827.2,3.60110108]
[1769369255149,3.57685528,2829.4,2827.2,3.60110108]
[1769369256344,0.17696,2829.1,2827.2,3.60110108]
[1769369256845,0.00367114,2829.5,2827.2,3.60110108]
[1769369257347,0.18060114,2829.5,2827.2,3.60110108]
[1769369258044,0.17694,2829.2,2827.2,3.60110108]
[1769369258848,0.00367114,2829.5,2827.2,3.60110108]
[1769369259251,0.00367114,2829.5,2827.6,3.59809653]
[1769369259646,0.00367114,2829.5,2827.6,3.77513653]
[1769369260045,0.00367114,2829.5,2827.6,3.59809653]
[1769369262758,0.00367114,2829.5,2827.6,3.77513653]
[1769369262959,0.00367114,2829.5,2827.6,3.59809653]
[1769369263753,3.58052642,2829.5,2827.2,0.00300455]
[1769369264059,0.17696,2829.0,2827.2,0.00300455]
[1769369264259,0.17696,2829.0,2827.2,3.60110108]
[1769369264760,3.58052642,2829.5,2827.2,3.60110108]
[1769369266562,0.17694,2829.3,2827.2,3.60110108]
[1769369268862,0.00367114,2829.5,2827.4,3.77515653]
[1769369270165,0.00367114,2829.5,2827.9,3.59809653]
[1769369271865,0.00367114,2829.5,2827.9,3.77511653]
[1769369272473,0.17687,2830.4,2828.6,3.59809653]
[1769369272867,4.13276874,2830.3,2828.6,3.59809653]
[1769369273062,0.17688,2830.2,2828.6,3.59809653]